[Event "XXX Torre Memorial 2018"]
[Site "Merida"]
[Date "2018.12.18"]
[Round "7"]
[White "Baryshpolets, Andrey"]
[Black "Martinez Duany, Lelys Stanley"]
[Result "0-1"]
[ECO "A40"]
[WhiteElo "2578"]
[BlackElo "2536"]
[Annotator "ChessBase"]
[PlyCount "134"]
[EventDate "2018.12.15"]
[EventType "swiss"]
[EventCountry "MEX"]
[SourceTitle "playchess.com"]
[Source "ChessBase"]
[SourceQuality "1"]
[TimeControl "5400+30"]

1. d4 {[%emt 0:00:00]} g6 {[%emt 0:01:09]} 2. c4 {[%emt 0:02:29]} Bg7 {[%emt 0:00:48]} 3. Nc3 {[%emt 0:04:37]} c5 {[%emt 0:02:31]} 4. d5 {[%emt 0:00:41]} Nf6 {[%emt 0:02:19]} 5. e4 {[%emt 0:01:09]} d6 {[%emt 0:00:05]} 6. h3 {[%emt 0:00:59]} Na6 {[%emt 0:00:32]} 7. Bd3 {[%emt 0:03:00]} O-O {[%emt 0:01:43]} 8. Bg5 {[%emt 0:03:27]} Nc7 {[%emt 0:04:38]} 9. a4 {[%emt 0:05:58]} e5 {[%emt 0:03:21]} 10. Qd2 {[%emt 0:03:44]} Na6 {[%emt 0:00:43]} 11. Nge2 {[%emt 0:02:32]} Nb4 {[%emt 0:00:09]} 12. Bb1 {[%emt 0:00:37]} Qd7 {[%emt 0:05:32]} 13. g4 {[%emt 0:03:31]} Ne8 {[%emt 0:05:14]} 14. Ng3 {[%emt 0:03:44]} Bf6 {[%emt 0:01:16]} 15. Bh6 {[%emt 0:04:25]} Bg7 {[%emt 0:02:43]} 16. Be3 {[%emt 0:03:53]} Qe7 {[%emt 0:01:34]} 17. Ra3 {[%emt 0:01:28]} Bd7 {[%emt 0:01:03]} 18. Nce2 {[%emt 0:03:53]} a6 {[%emt 0:02:26]} 19. Kf1 {[%emt 0:05:19]} b6 {[%emt 0:00:41]} 20. Kg2 {[%emt 0:00:06]} Qd8 {[%emt 0:02:19]} 21. Kh2 {[%emt 0:01:10]} b5 {[%emt 0:00:56]} 22. b3 {[%emt 0:00:44]} bxa4 {[%emt 0:02:14]} 23. bxa4 {[%emt 0:00:08]} Rb8 {[%emt 0:00:13]} 24. a5 {[%emt 0:02:19]} Kh8 {[%emt 0:02:03]} 25. Rf1 {[%emt 0:00:47]} Qe7 {[%emt 0:03:09]} 26. Ng1 {[%emt 0:00:48]} Bc8 {[%emt 0:01:25]} 27. Nf3 {[%emt 0:04:05]} Nf6 {[%emt 0:02:34]} 28. Bg5 {[%emt 0:01:06]} Qd7 {[%emt 0:02:44]} 29. Rg1 {[%emt 0:03:43]} Ng8 {[%emt 0:02:04]} 30. Rf1 {[%emt 0:02:09]} Qe8 {[%emt 0:01:29]} 31. Be3 {[%emt 0:03:21]} Qe7 {[%emt 0:00:28]} 32. Ng5 {[%emt 0:01:31]} Nf6 {[%emt 0:02:18]} 33. Qc1 {[%emt 0:01:29]} Kg8 {[%emt 0:01:18]} 34. Kg2 {[%emt 0:01:08]} Rb7 {[%emt 0:01:27]} 35. Bd2 {[%emt 0:01:01]} Bd7 {[%emt 0:01:06]} 36. f4 {[%emt 0:01:46]} exf4 {[%emt 0:03:20]} 37. Bxf4 {[%emt 0:00:21]} Rfb8 {[%emt 0:03:12]} 38. Qe3 {[%emt 0:08:29]} Be8 {[%emt 0:01:48]} 39. Nf3 {[%emt 0:04:21]} Nd7 {[%emt 0:00:22]} 40. Bg5 {[%emt 0:01:21]} f6 {[%emt 0:07:27]} 41. Bf4 {[%emt 0:00:59]} Bf7 {[%emt 0:03:09]} 42. Ne2 {[%emt 0:01:20]} Ne5 {[%emt 0:02:30]} 43. Bxe5 {[%emt 0:02:20]} fxe5 {[%emt 0:01:31]} 44. Ra1 {[%emt 0:00:45]} Be8 {[%emt 0:00:55]} 45. g5 {[%emt 0:01:33]} Bd7 {[%emt 0:00:36]} 46. Nh2 {[%emt 0:01:11]} Rf8 {[%emt 0:00:44]} 47. Rxf8+ {[%emt 0:00:09]} Bxf8 {[%emt 0:01:57]} 48. h4 {[%emt 0:00:37]} Bc8 {[%emt 0:00:33]} 49. Nc3 {[%emt 0:00:37]} Qd8 {[%emt 0:01:27]} 50. Nd1 {[%emt 0:00:49]} Rf7 {[%emt 0:00:21]} 51. Nf2 {[%emt 0:00:34]} Rf4 {[%emt 0:00:23]} 52. Qg3 {[%emt 0:01:00]} h5 {[%emt 0:04:00]} 53. Ra3 {[%emt 0:00:44]} Be7 {[%emt 0:01:14]} 54. Nf3 {[%emt 0:00:46]} Bd7 {[%emt 0:01:27]} 55. Ng1 {[%emt 0:01:10]} Qb8 {[%emt 0:00:38]} 56. Ne2 {[%emt 0:00:33]} Rf7 {[%emt 0:00:21]} 57. Bd3 {[%emt 0:01:05]} Bd8 {[%emt 0:00:40]} 58. Qe3 {[%emt 0:01:06]} Bc7 {[%emt 0:00:52]} 59. Nc1 {[%emt 0:00:57]} Qd8 {[%emt 0:00:59]} 60. Nb3 {[%emt 0:00:10]} Rf4 {[%emt 0:00:33]} 61. Kg3 {[%emt 0:00:31]} Qf8 {[%emt 0:01:31]} 62. Nc1 {[%emt 0:01:24]} Bg4 {[%emt 0:00:38]} 63. Qd2 {[%emt 0:01:37]} Rf3+ {[%emt 0:01:44]} 64. Kg2 {[%emt 0:00:03]} Bc8 {[%emt 0:01:45]} 65. Rb3 {[%emt 0:01:01]} Bxa5 {[%emt 0:00:39]} 66. Bf1 {[%emt 0:00:08]} Rf4 {[%emt 0:01:22]} 67. Kg3 {[%emt 0:01:30]} Nd3 {[%emt 0:00:49]} 0-1

[Event "XXX Torre Memorial 2018"]
[Site "Merida"]
[Date "2018.12.18"]
[Round "7"]
[White "Gonzalez Vidal, Yuri"]
[Black "Quesada Perez, Yasser"]
[Result "1/2-1/2"]
[ECO "B48"]
[WhiteElo "2553"]
[BlackElo "2528"]
[Annotator "ChessBase"]
[PlyCount "74"]
[EventDate "2018.12.15"]
[EventType "swiss"]
[EventCountry "MEX"]
[SourceTitle "playchess.com"]
[Source "ChessBase"]
[SourceQuality "1"]
[TimeControl "5400+30"]

1. e4 {[%emt 0:00:12]} c5 {[%emt 0:00:00]} 2. Nf3 {[%emt 0:00:24]} e6 {[%emt 0:00:00]} 3. d4 {[%emt 0:00:20]} cxd4 {[%emt 0:00:00]} 4. Nxd4 {[%emt 0:00:06]} Nc6 {[%emt 0:00:00]} 5. Nc3 {[%emt 0:00:09]} Qc7 {[%emt 0:00:00]} 6. Be3 {[%emt 0:00:12]} Nf6 {[%emt 0:00:04]} 7. f4 {[%emt 0:01:49]} Bb4 {[%emt 0:00:07]} 8. Ndb5 {[%emt 0:00:19]} Qa5 {[%emt 0:00:06]} 9. e5 {[%emt 0:00:14]} Nd5 {[%emt 0:00:05]} 10. Bd2 {[%emt 0:01:15]} Nxc3 {[%emt 0:00:07]} 11. Bxc3 {[%emt 0:02:33]} Bxc3+ {[%emt 0:00:08]} 12. Nxc3 {[%emt 0:01:57]} O-O {[%emt 0:00:08]} 13. Qd2 {[%emt 0:01:01]} Rb8 {[%emt 0:00:06]} 14. Bd3 {[%emt 0:14:24]} b5 {[%emt 0:00:07]} 15. O-O {[%emt 0:01:23]} Ba6 {[%emt 0:03:03]} 16. Rf3 {[%emt 0:07:13]} d5 {[%emt 0:11:11]} 17. exd6 {[%emt 0:19:21]} Rfd8 {[%emt 0:09:34]} 18. Qf2 {[%emt 0:12:38]} f5 {[%emt 0:07:02]} 19. Qh4 {[%emt 0:05:00]} b4 {[%emt 0:06:50]} 20. Rh3 {[%emt 0:02:50]} h6 {[%emt 0:02:24]} 21. Ne2 {[%emt 0:09:58]} Bxd3 {[%emt 0:06:32]} 22. Rxd3 {[%emt 0:00:23]} Rxd6 {[%emt 0:02:05]} 23. Rxd6 {[%emt 0:01:03]} Qc5+ {[%emt 0:00:05]} 24. Qf2 {[%emt 0:00:22]} Qxd6 {[%emt 0:00:05]} 25. Qe3 {[%emt 0:00:58]} Rb5 {[%emt 0:03:59]} 26. a3 {[%emt 0:04:22]} bxa3 {[%emt 0:03:35]} 27. bxa3 {[%emt 0:01:59]} e5 {[%emt 0:02:07]} 28. h3 {[%emt 0:07:17]} Qc5 {[%emt 0:12:35]} 29. Qxc5 {[%emt 0:01:25]} Rxc5 {[%emt 0:00:04]} 30. fxe5 {[%emt 0:00:06]} Rxc2 {[%emt 0:01:59]} 31. Nf4 {[%emt 0:02:23]} Nxe5 {[%emt 0:01:39]} 32. Rb1 {[%emt 0:00:08]} Rd2 {[%emt 0:12:10]} 33. Rb8+ {[%emt 0:00:51]} Kf7 {[%emt 0:00:36]} 34. Rb5 {[%emt 0:00:09]} Nc4 {[%emt 0:03:44]} 35. Rxf5+ {[%emt 0:00:18]} Kg8 {[%emt 0:00:04]} 36. Rc5 {[%emt 0:00:47]} Rd4 {[%emt 0:02:49]} 37. Rc8+ {[%emt 0:00:45]} Kh7 {[%emt 0:01:26]} 1/2-1/2

[Event "XXX Torre Memorial 2018"]
[Site "Merida"]
[Date "2018.12.18"]
[Round "7"]
[White "Barrientos, Sergio E"]
[Black "Almeida Quintana, Omar"]
[Result "0-1"]
[ECO "B00"]
[WhiteElo "2499"]
[BlackElo "2545"]
[Annotator "ChessBase"]
[PlyCount "96"]
[EventDate "2018.12.15"]
[EventType "swiss"]
[EventCountry "MEX"]
[SourceTitle "playchess.com"]
[Source "ChessBase"]
[SourceQuality "1"]
[TimeControl "5400+30"]

1. e4 {[%emt 0:04:30]} d6 {[%emt 0:00:00]} 2. d4 {[%emt 0:00:05]} Nf6 {[%emt 0:00:00]} 3. Bd3 {[%emt 0:00:04]} g6 {[%emt 0:01:53]} 4. Nf3 {[%emt 0:00:08]} Bg7 {[%emt 0:00:05]} 5. O-O {[%emt 0:00:05]} O-O {[%emt 0:00:04]} 6. c3 {[%emt 0:00:05]} Nbd7 {[%emt 0:03:36]} 7. Re1 {[%emt 0:00:07]} e5 {[%emt 0:00:04]} 8. Nbd2 {[%emt 0:03:00]} b6 {[%emt 0:01:51]} 9. Nf1 {[%emt 0:04:24]} Bb7 {[%emt 0:00:21]} 10. Ng3 {[%emt 0:00:08]} Re8 {[%emt 0:00:49]} 11. d5 {[%emt 0:05:20]} c6 {[%emt 0:01:01]} 12. c4 {[%emt 0:01:03]} Nc5 {[%emt 0:03:08]} 13. Bc2 {[%emt 0:16:14]} a5 {[%emt 0:00:20]} 14. Be3 {[%emt 0:01:44]} cxd5 {[%emt 0:04:35]} 15. cxd5 {[%emt 0:00:12]} Nfd7 {[%emt 0:02:16]} 16. Qd2 {[%emt 0:00:08]} b5 {[%emt 0:00:22]} 17. h4 {[%emt 0:02:34]} Nf6 {[%emt 0:03:29]} 18. Bxc5 {[%emt 0:06:09]} dxc5 {[%emt 0:00:19]} 19. a4 {[%emt 0:00:01]} b4 {[%emt 0:00:10]} 20. Bd3 {[%emt 0:00:08]} Qe7 {[%emt 0:04:04]} 21. Bb5 {[%emt 0:08:21]} Red8 {[%emt 0:09:36]} 22. Qg5 {[%emt 0:02:53]} h6 {[%emt 0:00:34]} 23. Qe3 {[%emt 0:02:01]} Ng4 {[%emt 0:04:44]} 24. Qe2 {[%emt 0:01:46]} h5 {[%emt 0:01:00]} 25. Nf1 {[%emt 0:00:53]} f5 {[%emt 0:05:11]} 26. exf5 {[%emt 0:08:49]} gxf5 {[%emt 0:01:28]} 27. Ng3 {[%emt 0:00:12]} Rf8 {[%emt 0:09:43]} 28. Bc4 {[%emt 0:05:11]} Qd6 {[%emt 0:01:30]} 29. Ng5 {[%emt 0:07:31]} e4 {[%emt 0:00:47]} 30. Ne6 {[%emt 0:13:07]} Bd4 {[%emt 0:03:54]} 31. Nxd4 {[%emt 0:00:11]} cxd4 {[%emt 0:00:03]} 32. Qf1 {[%emt 0:00:21]} d3 {[%emt 0:02:44]} 33. Rad1 {[%emt 0:00:14]} Rae8 {[%emt 0:01:07]} 34. Bxd3 {[%emt 0:00:56]} exd3 {[%emt 0:00:23]} 35. Rxe8 {[%emt 0:00:09]} Rxe8 {[%emt 0:00:07]} 36. Qxd3 {[%emt 0:00:04]} Re5 {[%emt 0:12:07]} 37. Qc4 {[%emt 0:04:05]} Nf6 {[%emt 0:03:47]} 38. Nf1 {[%emt 0:02:29]} Ba6 {[%emt 0:03:18]} 39. Qc6 {[%emt 0:03:11]} Qxc6 {[%emt 0:01:19]} 40. dxc6 {[%emt 0:00:09]} Bxf1 {[%emt 0:01:24]} 41. c7 {[%emt 0:01:08]} Ba6 {[%emt 0:00:29]} 42. Rd8+ {[%emt 0:00:37]} Re8 {[%emt 0:01:55]} 43. Rd6 {[%emt 0:00:30]} Ng4 {[%emt 0:00:32]} 44. g3 {[%emt 0:00:30]} Bb7 {[%emt 0:03:36]} 45. f3 {[%emt 0:00:02]} Re1+ {[%emt 0:00:45]} 46. Kg2 {[%emt 0:00:01]} Rc1 {[%emt 0:00:10]} 47. Rd7 {[%emt 0:01:14]} Rc2+ {[%emt 0:00:16]} 48. Kf1 {[%emt 0:00:06]} Nf6 {[%emt 0:02:02]} 0-1

[Event "XXX Torre Memorial 2018"]
[Site "Merida"]
[Date "2018.12.18"]
[Round "7"]
[White "Rios, Cristhian Camilo"]
[Black "Matsenko, Sergei"]
[Result "1-0"]
[ECO "E39"]
[WhiteElo "2467"]
[BlackElo "2524"]
[Annotator "ChessBase"]
[PlyCount "69"]
[EventDate "2018.12.15"]
[EventType "swiss"]
[EventCountry "MEX"]
[SourceTitle "playchess.com"]
[Source "ChessBase"]
[SourceQuality "1"]
[TimeControl "5400+30"]

1. d4 {[%emt 0:01:43]} Nf6 {[%emt 0:06:08]} 2. c4 {[%emt 0:00:19]} e6 {[%emt 0:00:05]} 3. Nc3 {[%emt 0:00:28]} Bb4 {[%emt 0:00:06]} 4. Qc2 {[%emt 0:00:30]} c5 {[%emt 0:00:06]} 5. dxc5 {[%emt 0:00:23]} O-O {[%emt 0:00:04]} 6. a3 {[%emt 0:00:18]} Bxc5 {[%emt 0:00:16]} 7. Nf3 {[%emt 0:00:23]} a6 {[%emt 0:00:50]} 8. Bg5 {[%emt 0:01:06]} Be7 {[%emt 0:03:53]} 9. e4 {[%emt 0:06:32]} d6 {[%emt 0:02:39]} 10. Be2 {[%emt 0:01:12]} Qc7 {[%emt 0:01:09]} 11. O-O {[%emt 0:04:20]} b6 {[%emt 0:00:13]} 12. Rfd1 {[%emt 0:04:25]} Bb7 {[%emt 0:00:34]} 13. b4 {[%emt 0:07:17]} Nbd7 {[%emt 0:01:46]} 14. Rac1 {[%emt 0:00:08]} Rac8 {[%emt 0:00:27]} 15. Qd3 {[%emt 0:08:57]} Rfd8 {[%emt 0:02:30]} 16. Nd2 {[%emt 0:01:44]} h6 {[%emt 0:19:28]} 17. Bf4 {[%emt 0:03:12]} Ne5 {[%emt 0:01:40]} 18. Qg3 {[%emt 0:00:08]} Ng6 {[%emt 0:02:29]} 19. Be3 {[%emt 0:00:22]} Nd7 {[%emt 0:00:34]} 20. Nb3 {[%emt 0:08:34]} Nde5 {[%emt 0:12:10]} 21. f4 {[%emt 0:18:10]} Nxc4 {[%emt 0:00:20]} 22. Bxc4 {[%emt 0:00:07]} Qxc4 {[%emt 0:00:03]} 23. Nd4 {[%emt 0:00:07]} Qxc3 {[%emt 0:01:51]} 24. Rxc3 {[%emt 0:00:09]} Rxc3 {[%emt 0:00:01]} 25. f5 {[%emt 0:01:09]} exf5 {[%emt 0:08:33]} 26. Nxf5 {[%emt 0:03:02]} Re8 {[%emt 0:07:47]} 27. Qf2 {[%emt 0:12:34]} Bf8 {[%emt 0:08:52]} 28. Rf1 {[%emt 0:00:16]} Rxe4 {[%emt 0:09:52]} 29. Nxh6+ {[%emt 0:00:44]} Kh7 {[%emt 0:00:04]} 30. Nxf7 {[%emt 0:07:00]} Rcxe3 {[%emt 0:03:14]} 31. Ng5+ {[%emt 0:00:35]} Kh6 {[%emt 0:00:00]} 32. Nxe4 {[%emt 0:01:08]} Rxe4 {[%emt 0:00:01]} 33. Qxb6 {[%emt 0:00:08]} Re7 {[%emt 0:06:48]} 34. Qxd6 {[%emt 0:00:26]} Re8 {[%emt 0:01:51]} 35. Qd7 {[%emt 0:00:14]} 1-0

[Event "XXX Torre Memorial 2018"]
[Site "Merida"]
[Date "2018.12.18"]
[Round "8"]
[White "Quesada Perez, Yasser"]
[Black "Cordova, Emilio"]
[Result "1/2-1/2"]
[ECO "B33"]
[WhiteElo "2528"]
[BlackElo "2595"]
[Annotator "ChessBase"]
[PlyCount "50"]
[EventDate "2018.12.15"]
[EventType "swiss"]
[EventCountry "MEX"]
[SourceTitle "playchess.com"]
[Source "ChessBase"]
[SourceQuality "1"]
[TimeControl "5400+30"]

1. e4 {[%emt 0:00:00]} c5 {[%emt 0:06:34]} 2. Nf3 {[%emt 0:00:00]} Nc6 {[%emt 0:00:10]} 3. d4 {[%emt 0:00:00]} cxd4 {[%emt 0:00:07]} 4. Nxd4 {[%emt 0:00:00]} Nf6 {[%emt 0:01:12]} 5. Nc3 {[%emt 0:00:00]} e5 {[%emt 0:01:33]} 6. Ndb5 {[%emt 0:00:12]} d6 {[%emt 0:00:07]} 7. Bg5 {[%emt 0:00:34]} a6 {[%emt 0:00:08]} 8. Na3 {[%emt 0:00:03]} b5 {[%emt 0:01:16]} 9. Nd5 {[%emt 0:00:20]} Be7 {[%emt 0:00:07]} 10. Bxf6 {[%emt 0:00:15]} Bxf6 {[%emt 0:00:06]} 11. c4 {[%emt 0:00:20]} b4 {[%emt 0:05:29]} 12. Nc2 {[%emt 0:00:17]} a5 {[%emt 0:00:44]} 13. g3 {[%emt 0:07:13]} Bg5 {[%emt 0:02:36]} 14. Bg2 {[%emt 0:03:28]} O-O {[%emt 0:00:16]} 15. O-O {[%emt 0:00:05]} Be6 {[%emt 0:00:08]} 16. Qd3 {[%emt 0:05:53]} Bxd5 {[%emt 0:16:42]} 17. cxd5 {[%emt 0:09:29]} Nb8 {[%emt 0:00:25]} 18. a3 {[%emt 0:00:15]} Na6 {[%emt 0:00:20]} 19. axb4 {[%emt 0:00:10]} Nxb4 {[%emt 0:00:06]} 20. Nxb4 {[%emt 0:00:14]} axb4 {[%emt 0:00:05]} 21. h4 {[%emt 0:00:37]} Bh6 {[%emt 0:00:41]} 22. Qc4 {[%emt 0:03:46]} Rc8 {[%emt 0:11:59]} 23. Qxb4 {[%emt 0:04:39]} Rb8 {[%emt 0:00:03]} 24. Qc3 {[%emt 0:00:32]} Qb6 {[%emt 0:00:06]} 25. Bh3 {[%emt 0:00:53]} Qxb2 {[%emt 0:00:10]} 1/2-1/2

[Event "XXX Torre Memorial 2018"]
[Site "Merida"]
[Date "2018.12.18"]
[Round "8"]
[White "Escobar Forero, Alder"]
[Black "Theodorou, Nikolas"]
[Result "0-1"]
[ECO "B94"]
[WhiteElo "2479"]
[BlackElo "2546"]
[Annotator "ChessBase"]
[PlyCount "146"]
[EventDate "2018.12.15"]
[EventType "swiss"]
[EventCountry "MEX"]
[SourceTitle "playchess.com"]
[Source "ChessBase"]
[SourceQuality "1"]
[TimeControl "5400+30"]

1. e4 {[%emt 0:00:18]} c5 {[%emt 0:00:00]} 2. Nf3 {[%emt 0:01:11]} d6 {[%emt 0:00:00]} 3. d4 {[%emt 0:00:04]} cxd4 {[%emt 0:00:00]} 4. Nxd4 {[%emt 0:00:08]} Nf6 {[%emt 0:00:00]} 5. Nc3 {[%emt 0:00:05]} a6 {[%emt 0:00:00]} 6. Bg5 {[%emt 0:00:43]} Nbd7 {[%emt 0:00:00]} 7. Bc4 {[%emt 0:00:22]} Qb6 {[%emt 0:00:47]} 8. O-O {[%emt 0:00:09]} Qc5 {[%emt 0:00:23]} 9. Bd5 {[%emt 0:00:06]} e6 {[%emt 0:00:04]} 10. Re1 {[%emt 0:00:02]} Ne5 {[%emt 0:00:04]} 11. Na4 {[%emt 0:16:05]} Qa5 {[%emt 0:11:52]} 12. Bb3 {[%emt 0:02:10]} Be7 {[%emt 0:18:29]} 13. Qe2 {[%emt 0:28:08]} Bd7 {[%emt 0:04:33]} 14. Nc3 {[%emt 0:02:11]} O-O {[%emt 0:01:54]} 15. Rad1 {[%emt 0:01:37]} Nc6 {[%emt 0:09:55]} 16. Nf3 {[%emt 0:01:48]} Rfd8 {[%emt 0:04:07]} 17. Nb1 {[%emt 0:20:33]} h6 {[%emt 0:02:12]} 18. Bf4 {[%emt 0:00:36]} Ne5 {[%emt 0:00:54]} 19. Nbd2 {[%emt 0:01:10]} Qc7 {[%emt 0:00:16]} 20. c4 {[%emt 0:02:18]} a5 {[%emt 0:08:28]} 21. a3 {[%emt 0:02:39]} a4 {[%emt 0:00:37]} 22. Ba2 {[%emt 0:00:11]} Ng6 {[%emt 0:02:12]} 23. Be3 {[%emt 0:00:33]} Ng4 {[%emt 0:00:15]} 24. Bd4 {[%emt 0:00:10]} Bf6 {[%emt 0:00:57]} 25. Nb1 {[%emt 0:00:37]} Rac8 {[%emt 0:01:21]} 26. Nc3 {[%emt 0:00:38]} N4e5 {[%emt 0:01:01]} 27. Nxe5 {[%emt 0:03:07]} dxe5 {[%emt 0:01:08]} 28. Be3 {[%emt 0:00:14]} Be7 {[%emt 0:01:03]} 29. g3 {[%emt 0:01:29]} Bc5 {[%emt 0:01:33]} 30. Rd3 {[%emt 0:00:24]} Be8 {[%emt 0:02:35]} 31. Red1 {[%emt 0:00:39]} Rxd3 {[%emt 0:01:05]} 32. Qxd3 {[%emt 0:01:03]} Ne7 {[%emt 0:01:44]} 33. Bxc5 {[%emt 0:03:33]} Qxc5 {[%emt 0:00:06]} 34. Qd6 {[%emt 0:00:06]} Qxd6 {[%emt 0:01:24]} 35. Rxd6 {[%emt 0:00:02]} Bc6 {[%emt 0:00:21]} 36. f3 {[%emt 0:00:36]} Kf8 {[%emt 0:00:38]} 37. Kf2 {[%emt 0:00:14]} Ng6 {[%emt 0:00:50]} 38. Ke3 {[%emt 0:00:16]} Ke7 {[%emt 0:00:13]} 39. Rd2 {[%emt 0:00:57]} Ra8 {[%emt 0:01:53]} 40. Bb1 {[%emt 0:00:56]} Ra5 {[%emt 0:01:15]} 41. Bc2 {[%emt 0:01:10]} Nf8 {[%emt 0:00:51]} 42. Na2 {[%emt 0:00:12]} Be8 {[%emt 0:02:18]} 43. Nc3 {[%emt 0:00:59]} Bc6 {[%emt 0:02:52]} 44. Na2 {[%emt 0:00:07]} g5 {[%emt 0:00:59]} 45. Nb4 {[%emt 0:00:53]} Be8 {[%emt 0:00:12]} 46. Rd1 {[%emt 0:00:30]} Nd7 {[%emt 0:01:10]} 47. Rh1 {[%emt 0:01:44]} Nb6 {[%emt 0:01:04]} 48. Bd3 {[%emt 0:00:06]} Rc5 {[%emt 0:00:45]} 49. h4 {[%emt 0:00:46]} Nxc4+ {[%emt 0:00:27]} 50. Bxc4 {[%emt 0:00:01]} Rxc4 {[%emt 0:00:06]} 51. hxg5 {[%emt 0:00:38]} hxg5 {[%emt 0:00:02]} 52. Rh5 {[%emt 0:01:08]} Kf6 {[%emt 0:02:51]} 53. Rh8 {[%emt 0:01:02]} Bb5 {[%emt 0:00:48]} 54. Ra8 {[%emt 0:00:30]} Rc1 {[%emt 0:02:34]} 55. Ra5 {[%emt 0:00:12]} Bc4 {[%emt 0:02:40]} 56. Rc5 {[%emt 0:05:40]} b6 {[%emt 0:02:40]} 57. Rc6 {[%emt 0:00:14]} b5 {[%emt 0:00:13]} 58. Nd5+ {[%emt 0:00:32]} Kg7 {[%emt 0:01:35]} 59. Kd2 {[%emt 0:02:27]} Rb1 {[%emt 0:00:49]} 60. Kc2 {[%emt 0:00:31]} Rf1 {[%emt 0:01:21]} 61. Ne3 {[%emt 0:00:29]} Bb3+ {[%emt 0:02:08]} 62. Kd2 {[%emt 0:00:09]} Rxf3 {[%emt 0:00:11]} 63. Rc5 {[%emt 0:00:01]} Rxg3 {[%emt 0:01:31]} 64. Rxe5 {[%emt 0:00:15]} Kg6 {[%emt 0:02:07]} 65. Rxb5 {[%emt 0:00:05]} Rf3 {[%emt 0:00:24]} 66. Ng4 {[%emt 0:00:31]} f6 {[%emt 0:00:45]} 67. Rb4 {[%emt 0:00:32]} Kh5 {[%emt 0:01:05]} 68. e5 {[%emt 0:00:55]} f5 {[%emt 0:00:02]} 69. Nf6+ {[%emt 0:00:05]} Kg6 {[%emt 0:00:05]} 70. Nd7 {[%emt 0:00:06]} Rf2+ {[%emt 0:01:00]} 71. Ke1 {[%emt 0:00:18]} Rxb2 {[%emt 0:00:26]} 72. Nc5 {[%emt 0:00:02]} Ra2 {[%emt 0:00:34]} 73. Rb6 {[%emt 0:00:58]} f4 {[%emt 0:01:25]} 0-1

[Event "XXX Torre Memorial 2018"]
[Site "Merida"]
[Date "2018.12.18"]
[Round "8"]
[White "Rios, Cristhian Camilo"]
[Black "Gonzalez Vidal, Yuri"]
[Result "1/2-1/2"]
[ECO "D31"]
[WhiteElo "2467"]
[BlackElo "2553"]
[Annotator "ChessBase"]
[PlyCount "49"]
[EventDate "2018.12.15"]
[EventType "swiss"]
[EventCountry "MEX"]
[SourceTitle "playchess.com"]
[Source "ChessBase"]
[SourceQuality "1"]
[TimeControl "5400+30"]

1. d4 {[%emt 0:00:00]} d5 {[%emt 0:00:00]} 2. c4 {[%emt 0:00:00]} e6 {[%emt 0:00:00]} 3. Nc3 {[%emt 0:00:27]} Bb4 {[%emt 0:00:10]} 4. cxd5 {[%emt 0:00:33]} exd5 {[%emt 0:00:10]} 5. Bf4 {[%emt 0:00:35]} Ne7 {[%emt 0:03:08]} 6. e3 {[%emt 0:01:25]} c6 {[%emt 0:00:54]} 7. Nf3 {[%emt 0:01:56]} O-O {[%emt 0:01:18]} 8. Be2 {[%emt 0:00:29]} Bd6 {[%emt 0:02:24]} 9. Ne5 {[%emt 0:02:35]} Bc7 {[%emt 0:13:00]} 10. O-O {[%emt 0:07:22]} Nd7 {[%emt 0:00:33]} 11. Nd3 {[%emt 0:03:35]} Bxf4 {[%emt 0:02:54]} 12. Nxf4 {[%emt 0:00:17]} Nf6 {[%emt 0:01:10]} 13. b4 {[%emt 0:06:43]} a6 {[%emt 0:03:07]} 14. a4 {[%emt 0:00:38]} Qd6 {[%emt 0:04:35]} 15. b5 {[%emt 0:06:57]} axb5 {[%emt 0:06:41]} 16. axb5 {[%emt 0:00:11]} Bf5 {[%emt 0:01:04]} 17. Qb3 {[%emt 0:08:37]} h6 {[%emt 0:14:13]} 18. h3 {[%emt 0:08:11]} g5 {[%emt 0:04:16]} 19. Nh5 {[%emt 0:03:20]} Nxh5 {[%emt 0:01:52]} 20. Bxh5 {[%emt 0:00:09]} Bd3 {[%emt 0:00:49]} 21. Be2 {[%emt 0:03:14]} Bxe2 {[%emt 0:03:11]} 22. Nxe2 {[%emt 0:00:11]} f5 {[%emt 0:01:45]} 23. Rxa8 {[%emt 0:02:35]} Rxa8 {[%emt 0:00:03]} 24. bxc6 {[%emt 0:00:33]} bxc6 {[%emt 0:00:29]} 25. Rb1 {[%emt 0:01:42]} 1/2-1/2